Cogmind - Beta 9.6 @@@ ROGUE MODE // 2020.09.09 @ 22:37:08 Player: TheGreatBorealis Result: Self-destructed Performance ------------- Evolutions (1) 500 Regions Visited (2) 400 Robots Destroyed (6) 30 Value Destroyed (113) 113 Prototype IDs (2) 40 Alien Tech Used (0) 0 Bonus (0) 0 TOTAL SCORE: 1083 Bonus ------- None Cogmind --------- Core Integrity 13/400 Matter 67/300 Energy 100/100 System Corruption 0% Temperature Cool (0) Movement Core (50) Location -9/Materials Parts ------- > --- POWER (1) -------- (None) > --- PROPULSION (4) --- (None) > --- UTILITY (2) ------ Visual Processing Unit > --- WEAPON (2) ------- (None) > --- INVENTORY (4) ---- Small Storage Unit Signal Interpreter Improved Signal Interpreter Peak State ------------ > --- POWER ------------ Ion Engine > --- PROPULSION ------- Aluminum Leg Aluminum Leg Aluminum Leg > --- UTILITY ---------- Small Storage Unit Visual Processing Unit > --- WEAPON ----------- Autogun Autogun > --- INVENTORY -------- Light Ion Engine Signal Interpreter Improved Signal Interpreter Medium Armor Plating Autogun Grenade Launcher [Rating: 11] Favorites ----------- Power Ion Engine Engine Ion Engine Propulsion Aluminum Leg Leg Aluminum Leg Utility Small Storage Unit Device Terrain Scanner Storage Small Storage Unit Processor Visual Processing Unit Protection Medium Armor Plating Weapon Autogun Energy Gun Small Laser Ballistic Gun Autogun Launcher Grenade Launcher Build | -11 -10 -9 ------- Run | Scr Mat Mat Slots Evolved 2 | . . 2 Power . | . . . Propulsion 2 | . . 2 Utility . | . . . Weapon . | . . . Parts Attached 19 | 6 7 6 Power 2 | 1 . 1 Engine 2 | 1 . 1 Core . | . . . Reactor . | . . . Propulsion 4 | 2 1 1 Treads . | . . . Leg 4 | 2 1 1 Wheel . | . . . Hover . | . . . Flight . | . . . Utility 5 | 1 2 2 Device 2 | . 2 . Storage 1 | 1 . . Processor 1 | . . 1 Hackware . | . . . Protection 1 | . . 1 Artifact . | . . . Weapon 8 | 2 4 2 Energy Gun 1 | 1 . . Energy Cannon . | . . . Ballistic Gun 5 | 1 3 1 Ballistic Cannon . | . . . Launcher 2 | . 1 1 Special Weapon . | . . . Impact Weapon . | . . . Slashing Weapon . | . . . Piercing Weapon . | . . . Special Melee Weapon . | . . . Unidentified Prototypes . | . . . Parts Lost 9 | . . 9 Power 2 | . . 2 Propulsion 3 | . . 3 Utility 1 | . . 1 Weapon 3 | . . 3 Highest Loss Streak 9 | . . 9 Average Slot Usage (%) 87 | . 97 77 Engine 11 | . 14 9 Leg 27 | . 28 27 Device 6 | . 12 1 Storage 12 | . 14 10 Processor 4 | . . 9 Energy Gun 2 | . 4 . Ballistic Gun 20 | . 22 17 Naked Turns . | . . . Heaviest Build 16 | 11 16 16 Greatest Support 30 | 20 20 30 Greatest Overweight (x) 3 | . . 3 Average Overweight (x) . | . . . Largest Inventory Capacity 6 | 6 6 6 Average Capacity 5 | 5 6 5 Most Carried 6 | 4 6 6 Average Carried 5 | 1 5 5 Final Capacity 6 | 6 6 4 Final Carried 6 | 4 6 3 Class Distribution -------------------- 100% | Mutant Dominant Class ---------------- Mutant | -10/Materials Mutant | -9/Materials Resources | -11 -10 -9 ----------- Run | Scr Mat Mat Matter Collected 337 | 182 29 126 Remotely . | . . . Salvage Created 80 | . 61 19 Parts 11 | . 4 7 Haulers Intercepted . | . . . Recyclers Shooed . | . . . Parts Field Recycled . | . . . Retrieved Matter . | . . . Parts Self-Destructed . | . . . Prevented . | . . . Kills | -11 -10 -9 ------- Run | Scr Mat Mat Combat Hostiles Destroyed 5 | . 2 3 Guns 2 | . 1 1 AOE 3 | . 1 2 Classes Destroyed 3 | . 1 2 Builder 1 | . . 1 Swarmer 3 | . . 3 Grunt 2 | . 2 . Best Kill Streak 4 | . 1 4 Combat Bots Only 3 | . 1 3 Max Kills in Single Turn 1 | . 1 1 Gunslinging . | . . . Exploded 1 | . 1 1 Melee . | . . . Uniques/NPCs Destroyed . | . . . Combat | -11 -10 -9 -------- Run | Scr Mat Mat Damage Taken 1327 | . 155 1172 Core 432 | . 45 387 Absorbed by Shields . | . . . Core Remaining (%) 91 | 100 82 . Volleys Fired 25 | . 14 11 Largest 2 | . 2 2 Hottest 53 | . 53 53 Shots Fired 44 | . 28 16 Gun 34 | . 23 11 Cannon . | . . . Launcher 10 | . 5 5 Special . | . . . Kinetic 34 | . 23 11 Thermal . | . . . Explosive 10 | . 5 5 Electromagnetic . | . . . Robot Hit Streak 6 | . 4 6 Robot Miss Streak 1 | . 1 1 Penetration Max . | . . . Secondary Targets . | . . . Shots Hit Robots 16 | . 9 7 Core Hits 8 | . 2 6 Critical Hits . | . . . Critical Kills . | . . . Critical Parts Destroyed . | . . . Melee Attacks . | . . . Impact . | . . . Slashing . | . . . Piercing . | . . . Sneak Attacks . | . . . Combat Hostiles . | . . . Follow-up Attacks . | . . . Damage Inflicted 647 | . 232 415 Guns 254 | . 139 115 Cannons . | . . . Explosions 390 | . 93 297 Melee . | . . . Ramming 3 | . . 3 Kinetic 254 | . 139 115 Thermal . | . . . Explosive 390 | . 93 297 Electromagnetic . | . . . Impact . | . . . Slashing . | . . . Piercing . | . . . Highest Corruption . | . . . Average Corruption . | . . . Corruption Purged . | . . . Overload Shots . | . . . Overflow Damage 19 | . . 19 Projectiles . | . . . Explosions 19 | . . 19 Melee . | . . . Knockbacks . | . . . Impact . | . . . Kinetic . | . . . Secondary . | . . . Self-Inflicted Damage 29 | . . 29 Shots 1 | . . 1 Rammed 3 | . . 3 Targets Rammed 3 | . . 3 Kicked . | . . . Crushed . | . . . Highest Temperature 30 | . 30 15 Average Temperature 12 | . 14 6 Received Heat Transfer 408 | . 84 324 Siege Activations . | . . . Robots Corrupted . | . . . Combat Hostiles . | . . . Parts Fried . | . . . Impact Corruptions . | . . . Robots Melted . | . . . Combat Hostiles . | . . . Parts Melted . | . . . Heat Transferred . | . . . Parts Sabotaged . | . . . Parts Stolen . | . . . Parts Stripped . | . . . Power Chain Reactions . | . . . Missiles Intercepted . | . . . Alert | -11 -10 -9 ------- Run | Scr Mat Mat Peak Influence 105 | . 105 85 Average Influence 23 | . 29 21 Maximum Alert Level . | . . . Low Security (%) 100 | 100 100 100 Level 1 . | . . . Level 2 . | . . . Level 3 . | . . . Level 4 . | . . . Level 5 . | . . . High Security . | . . . Max Security . | . . . Squads Dispatched 5 | . 3 2 Investigation . | . . . Extermination . | . . . Reinforcement 5 | . 3 2 Assault . | . . . Garrison . | . . . Intercept . | . . . Construction Impeded 1 | . . 1 Haulers Reinforced . | . . . Stealth | -11 -10 -9 --------- Run | Scr Mat Mat Distress Signals 4 | . 2 2 Communications Jammed . | . . . Distress Signals . | . . . Times Spotted 20 | . 7 13 Peak Tracking Total 6 | . 5 6 Tactical Retreats 2 | . . 2 Traps | -11 -10 -9 ------- Run | Scr Mat Mat Traps Triggered . | . . . Indirectly . | . . . Trap Hack Attempts . | . . . Triggered . | . . . Disarmed . | . . . Reprogrammed . | . . . Reused . | . . . Traps Extracted . | . . . Installed . | . . . Triggered . | . . . Machines | -11 -10 -9 ---------- Run | Scr Mat Mat Machines Disabled 1 | . 1 . Max in Single Turn 1 | . 1 . Machines Sabotaged . | . . . Garrisons Compromised . | . . . Overloaded Fab Kills . | . . . Fab Network Shutdowns . | . . . Hacking | -11 -10 -9 --------- Run | Scr Mat Mat Machines Accessed 3 | . 2 1 Terminals 3 | . 2 1 Fabricators . | . . . Repair Stations . | . . . Recycling Units . | . . . Scanalyzers . | . . . Garrison Access . | . . . Total Hacks 5 | . 4 1 Successful 3 | . 2 1 Failed 2 | . 2 . Catastrophic 1 | . 1 . Database Lockouts . | . . . Manual 3 | . 2 1 Terminals 5 | . 4 1 Fabricators . | . . . Repair Stations . | . . . Recycling Units . | . . . Scanalyzers . | . . . Garrison Access . | . . . Terminal Hacks 3 | . 2 1 Prototype ID Bank 1 | . 1 . Unreport Threat 1 | . 1 . Recall Reinforcements 1 | . . 1 Fabricator Hacks . | . . . Repair Station Hacks . | . . . Recycling Unit Hacks . | . . . Scanalyzer . | . . . Garrison Access Hacks . | . . . Unauthorized Hacks . | . . . Terminals . | . . . Fabricators . | . . . Repair Stations . | . . . Recycling Units . | . . . Scanalyzers . | . . . Garrison Access . | . . . Data Cores Recovered . | . . . Used . | . . . Hacking Detections 1 | . 1 . Full Trace Events . | . . . Feedback Events . | . . . Feedback Blocked . | . . . Robot Schematics Acquired . | . . . Robots Built . | . . . Matter . | . . . Time . | . . . Total Robot Build Rating . | . . . Part Schematics Acquired . | . . . Parts Built . | . . . Matter . | . . . Time . | . . . Total Part Build Rating . | . . . Parts Repaired . | . . . Time . | . . . Parts Recycled . | . . . Recycled Matter . | . . . Retrieved Matter . | . . . Retrieved Components . | . . . Parts Scanalyzed . | . . . Part Schematics Acquired . | . . . Parts Damaged . | . . . Bothacking | -11 -10 -9 ------------ Run | Scr Mat Mat Used RIF Installer . | . . . Robots Hacked . | . . . Non-combat . | . . . Combat . | . . . Robot Hacks Applied . | . . . Relay Couplers Released . | . . . Robots Rewired . | . . . Allies Hacked . | . . . Hacks Repelled . | . . . Allies | -11 -10 -9 -------- Run | Scr Mat Mat Total Allies . | . . . Largest Group . | . . . Highest-Rated Group . | . . . Highest-Rated Ally . | . . . Total Orders . | . . . Ally Attacks . | . . . Total Damage . | . . . Kills . | . . . Allies Corrupted . | . . . Allies Melted . | . . . Intel | -11 -10 -9 ------- Run | Scr Mat Mat Robot Analysis Total . | . . . Derelict Logs Recovered . | . . . Drone Launches . | . . . Drone Recoveries . | . . . Exploration | -11 -10 -9 ------------- Run | Scr Mat Mat Turns Passed 834 | 62 367 405 Spaces Moved 580 | 43 246 291 Core 27 | 3 . 24 Treads . | . . . Legs 553 | 40 246 267 Wheels . | . . . Hover . | . . . Flight . | . . . Fastest Speed 50 | 50 120 50 Average Speed 120 | 115 120 120 Slowest Speed 200 | 120 120 200 Overloaded Moves . | . . . Propulsion Burnouts . | . . . Robots Hopped . | . . . Cave-ins Triggered . | . . . Exploration Rate (%) 20 | 5 36 19 Regions Visited 2 Branch Regions . Pre-discovered Areas . | . . . Known Exits Taken . | . . . Unknown Exits Taken 2 | 1 1 . Scrap Searched . | . . . Spaces Dug . | . . . Terrain Destroyed 54 | . 25 29 Melee . | . . . Projectile . | . . . AOE 54 | . 25 29 Actions | -11 -10 -9 --------- Run | Scr Mat Mat Total 679 | 52 298 329 Wait 26 | . 12 14 Move 578 | 42 245 291 Hop . | . . . Pick Up 14 | 4 9 1 Fast Attach 10 | 6 3 1 Attach 8 | . 3 5 Detach 3 | . 2 1 Swap 1 | . 1 . Drop 11 | . 9 2 Fire 25 | . 14 11 Melee . | . . . Ram 3 | . . 3 Kick . | . . . Crush . | . . . Escape Stasis . | . . . Rewire . | . . . Trap . | . . . Miscellaneous . | . . . Route ------- -11/Scrapyard -10/Materials (discovered 2 exits: *Mat / [*Min]) -9/Materials History --------- Turn | Location | Event 39 | -11/Scrapyard | Discovered new exit (range 15) 63 | -11/Scrapyard | Entered Materials 99 | -10/Materials | Discovered new exit (range 12) 322 | -10/Materials | Build established: Mutant 389 | -10/Materials | Discovered new exit (range 16) 430 | -10/Materials | Entered another Materials area 430 | -9/Materials | Evolved 2 slots: Propulsion x2 807 | -9/Materials | Core integrity fell below 50% 829 | -9/Materials | Core integrity fell below 20% 835 | -9/Materials | Self-destructed Last Messages --------------- 00804_ U-05 Engineer lays Concrete. 00804_ Lgt. Ion Engine destroyed. 00810_ Slammed into Y-45 Defender. 00813_ Destabilizing: Core damaged (-4). 00814_ Fusion Modulator explodes. 00814_ Y-45 Defender destroyed. 00814_ Autogun destroyed. 00814_ Terminal disabled. 00814_ Y-45 Defender destroyed. 00814_ W-16 Scout destroyed. 00814_ U-05 Engineer lays Concrete. 00814_ Acquired 49 matter. 00815_ U-05 Engineer lays Concrete. 00822_ C-30 ARC bursts open, deploying its payload. 00822_ G-47 Trooper unfolds itself. 00824_ U-05 Engineer lays Concrete. 00828_ U-05 Engineer builds a Wall. 00830_ U-05 Engineer lays Concrete. 00830_ Med. Armor Plating destroyed. 00831_ U-05 Engineer lays Concrete. Map ----- +----------------------------------------------------+ | ???????????????????????????????????????????? | | ???????????????????????????????????????????? | | ???????????????????????????????????????????? | | ???????????????????????????????????????????? | | ???????????????????????????????????????????? | | ???????????????????????????????????????????? | | ???????????????????????????????????????????? | | ???????????????????????????????????????????? | | ???????????????????????????????????????????? | | ???????????????????????????? ?????????????? | | ???????? ?????????????????? #???????????? | | ?#######/##????????????????? #???????????? | | ?# #????????????????? #???????????? | | ? """ # ########+####### #???????????? | | ?# "T" # #???????????? | | ?# " " # #####???????? | | ?# +?? ??????? | | ?# """ #??? ??????? | | ?# """ #???? """ r ??????? | | ?# """ #????? """ #???????? | | ?# +?????? """ #???????? | | ???##/#####???????# ????????? | | ????# #???????????# #?????????????? | | ????# ###?????????# " #?????????????? | | ???## # #########?# #####/####???????????? | | ???## #############@ u#[ =% #???????????? | | ???## ; #???????????? | | ???## [ Y #???????????? | | ???# * ; #???????????? | | ???## !%# ! #???????????? | | ???# u u# =/g ??????? | | ???## ; #######?????? | | ????# # ##;; #???????????? | | ????# # # ## ; #???????????? | | ????# # "" + ## ;;""";;; #???????????? | | ????# # """ ### #### # ####???????????? | | ????# + """ #?# #??#######??????????????? | | ????# # #?# #???????????????????????? | | ????# # ! #?# #???????????????????????? | | ????# ####+##### #???????????????????????? | | ????# #??????#????????????????? | | ????# ########## #???????????????????????? | | ????# ##"""#???# #?#?????????????????????? | | ????# ##"T"##### #???????????#???????????? | | ????# # !# #???????????????????????? | | ????# # """ # #???????????????????????? | | ????# # """ # #???????????????????????? | | ????# # """ # #???????????????????????? | | ????# + # #???????????????????????? | | ????# # """ # #?????????#?????????????? | +----------------------------------------------------+ Best States ------------- Heat Dissipation 28 Energy Generation 10 Energy Capacity 250 Matter Stores 222 Matter Capacity 300 Sight Range 18 Terrain Scan Range 14 Terrain Scan Density 10 Armor Coverage 225 Evasion (%) 40 Item Schematics ----------------- None Robot Schematics ------------------ None Fabricated ------------ Nothing Alien Tech Used ----------------- None Achievements -------------- None Challenges ------------ None Game ------ Seed DataGodExtractor Manual? 0 Play Time 00:14:24 Cumulative 28.3 hours Start 2020.09.09 @ 22:26:35 End 2020.09.09 @ 22:37:08 Sessions 1 Manual Loads 0 Difficulty Rogue Special Mode None Game No. 63 Rogue 63 Adventurer 0 Explorer 0 Win Type - Total 0 Types 0/0/0/0/0/0/0 Lore% 21 Gallery% 33 Achievement% 26 Wizard Run 0 Options --------- ASCII 0 Keyboard 1 Movement Numpad Keybinds 0 Fullscreen 2 Font 18/Terminus Map View 76x50 Tactical HUD 1 Map Filters NONE Filters NONE Steam 1 RUN: 6cb30a69-58e4-4f46-9f5c-2bf8933ecf48